fUST/lending_fUST_20250129
["ID","MTS","AMOUNT","RATE_DAILY","PERIOD"]
[350723804,1738085501407,52.93038833,0.00013973,2]
[350723805,1738086357163,259.033375,0.00013973,2]
[350723806,1738086444219,-351.0892727,0.00015447,2]
[350723807,1738086444293,-982.0154046,0.00015447,2]
[350723808,1738086444318,-289.50116674,0.00015548,2]
[350723820,1738086638269,-154.8915759,0.00015548,2]
[350723821,1738086638279,-300.0,0.00015548,2]
[350723822,1738086638288,-3163.43860326,0.00015549,2]
[350723823,1738086638300,-4446.98207608,0.00015549,2]
[350723824,1738086638326,-17289.57932066,0.00015549,2]
[350723825,1738086638335,-350.16461102,0.00016437,2]
[350723826,1738086638344,-500.0,0.00016438,2]
[350723827,1738086638354,-500.0,0.00016438,2]
[350723828,1738086638363,-500.0,0.00016438,2]
[350723829,1738086638373,-500.0,0.00016438,2]
[350723830,1738086638383,-500.0,0.00016438,2]
[350723831,1738086638392,-500.0,0.00016438,2]
[350723832,1738086638402,-201.90103069,0.00016438,2]
[350723833,1738086638412,-528.48245023,0.00016438,2]
[350723834,1738086638421,-500.0,0.00016438,2]
[350723835,1738086638431,-480.16994304,0.00016438,2]
[350723836,1738086638441,-500.0,0.00016438,2]
[350723837,1738086638450,-312.09312949,0.00016438,2]
[350723838,1738086638460,-160.84944382,0.00016438,2]
[350723839,1738086638475,-500.0,0.00016438,2]
[350723840,1738086638485,-500.0,0.00016438,2]
[350723841,1738086638495,-500.0,0.00016438,2]
[350723842,1738086638505,-500.0,0.00016438,2]
[350723843,1738086638514,-333.23152736,0.00016438,2]
[350723844,1738086638524,-511.9943746,0.00016438,2]
[350723845,1738086638534,-500.0,0.00016438,2]
[350723846,1738086638545,-500.0,0.00016438,2]
[350723847,1738086638555,-500.0,0.00016438,2]
[350723848,1738086638565,-500.0,0.00016438,2]
[350723849,1738086638575,-500.0,0.00016438,2]
[350723850,1738086638585,-305.308192,0.00016438,2]
[350723851,1738086638595,-500.0,0.00016438,2]
[350723852,1738086638605,-500.0,0.00016438,2]
[350723853,1738086638615,-500.0,0.00016438,2]
[350723854,1738086638625,-507.94244648,0.00016438,2]
[350723855,1738086638635,-517.54274188,0.00016438,2]
[350723856,1738086638645,-500.0,0.00016438,2]
[350723857,1738086638654,-500.0,0.00016438,2]
[350723858,1738086638664,-500.0,0.00016438,2]
[350723859,1738086638673,-500.0,0.00016438,2]
[350723860,1738086638683,-500.0,0.00016438,2]
[350723861,1738086638692,-500.0,0.00016438,2]
[350723862,1738086638702,-500.0,0.00016438,2]
[350723863,1738086638712,-500.0,0.00016438,2]
[350723864,1738086638725,-500.0,0.00016438,2]
[350723865,1738086638735,-500.0,0.00016438,2]
[350723866,1738086638744,-173.41135667,0.00016438,2]
[350723867,1738086638754,-500.0,0.00016438,2]
[350723868,1738086638763,-500.0,0.00016438,2]
[350723869,1738086638773,-500.0,0.00016438,2]
[350723870,1738086638782,-500.0,0.00016438,2]
[350723871,1738086638791,-500.0,0.00016438,2]
[350723872,1738086638801,-500.0,0.00016438,2]
[350723873,1738086638810,-500.0,0.00016438,2]
[350723874,1738086638820,-500.0,0.00016438,2]
[350723875,1738086638829,-500.0,0.00016438,2]
[350723876,1738086638839,-322.27664242,0.00016438,2]
[350723877,1738086638848,-500.0,0.00016438,2]
[350723878,1738086638858,-500.0,0.00016438,2]
[350723879,1738086638868,-500.0,0.00016438,2]
[350723880,1738086638878,-500.0,0.00016438,2]
[350723881,1738086638888,-500.0,0.00016438,2]
[350723882,1738086638898,-500.0,0.00016438,2]
[350723883,1738086638908,-500.0,0.00016438,2]
[350723884,1738086638917,-500.0,0.00016438,2]
[350723885,1738086638927,-500.0,0.00016438,2]
[350723886,1738086638936,-500.0,0.00016438,2]
[350723887,1738086638947,-500.0,0.00016438,2]
[350723888,1738086638956,-500.0,0.00016438,2]
[350723889,1738086638966,-500.0,0.00016438,2]
[350723890,1738086638977,-500.0,0.00016438,2]
[350723891,1738086638986,-500.0,0.00016438,2]
[350723892,1738086638997,-500.0,0.00016438,2]
[350723893,1738086639007,-503.15,0.00016438,2]
[350723894,1738086639018,-591.6,0.00016438,2]
[350723895,1738086639028,-845.49,0.00016438,2]
[350723896,1738086639041,-759.5,0.00016438,2]
[350723897,1738086639052,-500.0,0.00016438,2]
[350723898,1738086639062,-500.0,0.00016438,2]
[350723899,1738086639074,-500.0,0.00016438,2]
[350723900,1738086639083,-3381.53,0.00016438,2]
[350723901,1738086639093,-500.0,0.00016438,2]
[350723902,1738086639104,-256.72,0.00016438,2]
[350723903,1738086639114,-1427.36,0.00016438,2]
[350723904,1738086639124,-224.2513156,0.00016438,2]
[350723905,1738086639133,-500.0,0.00016438,2]
[350723906,1738086639142,-500.0,0.00016438,2]
[350723907,1738086639152,-500.0,0.00016438,2]
[350723908,1738086639162,-500.0,0.00016438,2]
[350723909,1738086639171,-500.0,0.00016438,2]
[350723910,1738086639181,-500.0,0.00016438,2]
[350723911,1738086639190,-500.0,0.00016438,2]
[350723912,1738086639200,-2836.7,0.00016438,2]
[350723913,1738086639210,-545.83214331,0.00016438,2]
[350723914,1738086639220,-500.0,0.00016438,2]
[350723915,1738086639230,-845.31,0.00016438,2]
[350723916,1738086639240,-2173.13,0.00016438,2]
[350723917,1738086639250,-500.0,0.00016438,2]
[350723918,1738086639260,-742.98,0.00016438,2]
[350723919,1738086639269,-4430.08,0.00016438,2]
[350723920,1738086639279,-500.0,0.00016438,2]
[350723921,1738086639289,-500.0,0.00016438,2]
[350723922,1738086639299,-1017.05,0.00016438,2]
[350723923,1738086639308,-500.0,0.00016438,2]
[350723924,1738086639317,-1088.85,0.00016438,2]
[350723925,1738086639327,-500.0,0.00016438,2]
[350723926,1738086639336,-500.0,0.00016438,2]
[350723927,1738086639346,-500.0,0.00016438,2]
[350723928,1738086639355,-500.0,0.00016438,2]
[350723929,1738086639366,-500.0,0.00016438,2]
[350723930,1738086639376,-505.58381825,0.00016438,2]
[350723931,1738086639386,-500.0,0.00016438,2]
[350723932,1738086639396,-500.0,0.00016438,2]
[350723933,1738086639406,-500.0,0.00016438,2]
[350723934,1738086639415,-992.87,0.00016438,2]
[350723935,1738086639424,-500.0,0.00016438,2]
[350723936,1738086639434,-1977.06,0.00016438,2]
[350723937,1738086639443,-11233.18,0.00016438,2]
[350723938,1738086639453,-500.0,0.00016438,2]
[350723939,1738086639464,-533.38,0.00016438,2]
[350723940,1738086639474,-247.25,0.00016438,2]
[350723941,1738086639484,-500.0,0.00016438,2]
[350723942,1738086639494,-500.0,0.00016574,2]
[350723943,1738086639503,-500.0,0.00016574,2]
[350723944,1738086639513,-500.0,0.00016574,2]
[350723945,1738086639522,-500.0,0.00016574,2]
[350723946,1738086639531,-257.38263354,0.00016574,2]
[350723947,1738086639542,-576.30687862,0.00016575,2]
[350723948,1738086639552,-500.0,0.00016575,2]
[350723949,1738086639562,-500.0,0.00016575,2]
[350723950,1738086639571,-500.0,0.00016575,2]
[350723951,1738086639581,-500.0,0.00016575,2]
[350723952,1738086639591,-500.0,0.00016575,2]
[350723953,1738086639600,-240.6147762,0.00016575,2]
[350723954,1738086639609,-500.0,0.00016575,2]
[350723955,1738086639619,-500.0,0.00016575,2]
[350723956,1738086639629,-192.38,0.00016575,2]
[350723957,1738086639638,-500.0,0.00016575,2]
[350723958,1738086639648,-500.0,0.00016575,2]
[350723959,1738086639657,-500.0,0.00016575,2]
[350723960,1738086639666,-503.15,0.00016575,2]
[350723961,1738086639676,-845.49,0.00016575,2]
[350723962,1738086639686,-759.5,0.00016575,2]
[350723963,1738086639695,-500.0,0.00016575,2]
[350723964,1738086639705,-3381.53,0.00016575,2]
[350723965,1738086639872,-1427.36,0.00016575,2]
[350723966,1738086639882,-500.0,0.00016575,2]
[350723967,1738086639893,-500.0,0.00016575,2]
[350723968,1738086639902,-500.0,0.00016575,2]
[350723969,1738086639912,-500.0,0.00016575,2]
[350723970,1738086639921,-327.41346915,0.00016575,2]
[350723971,1738086639931,-2836.7,0.00016575,2]
[350723972,1738086639940,-500.0,0.00016575,2]
[350723973,1738086639949,-2173.13,0.00016575,2]
[350723974,1738086639959,-845.31,0.00016575,2]
[350723975,1738086639970,-500.0,0.00016575,2]
[350723976,1738086639980,-742.98,0.00016575,2]
[350723978,1738086639989,-4430.08,0.00016575,2]
[350723980,1738086639999,-1017.05,0.00016575,2]
[350723981,1738086640008,-500.0,0.00016575,2]
[350723982,1738086640018,-1088.85,0.00016575,2]
[350723983,1738086640028,-500.0,0.00016575,2]
[350723984,1738086640040,-500.0,0.00016575,2]
[350723985,1738086640050,-500.0,0.00016575,2]
[350723986,1738086640059,-500.0,0.00016575,2]
[350723987,1738086640068,-500.0,0.00016575,2]
[350723988,1738086640078,-483.00986177,0.00016575,2]
[350723989,1738086640088,-992.87,0.00016575,2]
[350723990,1738086640097,-500.0,0.00016575,2]
[350723991,1738086640107,-708.58716407,0.00016575,2]
[350723992,1738086640121,-463.60001,0.00016575,2]
[350724016,1738086640793,-804.87282593,0.00016575,2]
[350724017,1738086640803,-4653.63717471,0.00016575,2]
[350724030,1738087346787,246.081706,0.00013973,2]
[350724032,1738087638134,-299.56587151,0.00015744,2]
[350724033,1738087639126,-0.43412849,0.00015744,2]
[350724034,1738087639155,-500.0,0.00015745,2]
[350724035,1738087639178,-500.0,0.00015745,2]
[350724036,1738087639201,-500.0,0.00015745,2]
[350724037,1738087639223,-378.93399344,0.00015745,2]
[350724038,1738087639245,-7459.10681269,0.00015746,2]
[350724058,1738087833161,-300.0,0.00015745,2]
[350724059,1738087833172,-17440.89318731,0.00015746,2]
[350724060,1738087833184,-838.92355313,0.00016434,2]
[350724061,1738087833195,-500.0,0.00016434,2]
[350724062,1738087833206,-838.92355313,0.00016434,2]
[350724063,1738087833217,-500.0,0.00016434,2]
[350724064,1738087833228,-838.92355313,0.00016434,2]
[350724065,1738087833239,-838.92355313,0.00016434,2]
[350724066,1738087833250,-500.0,0.00016434,2]
[350724067,1738087833262,-838.92355313,0.00016434,2]
[350724068,1738087833273,-838.92355313,0.00016434,2]
[350724069,1738087833284,-390.0,0.00016434,2]
[350724070,1738087833296,-838.92355313,0.00016434,2]
[350724071,1738087833306,-838.92355313,0.00016434,2]
[350724072,1738087833321,-838.92355313,0.00016434,2]
[350724073,1738087833333,-838.92355313,0.00016434,2]
[350724074,1738087833345,-838.92355313,0.00016434,2]
[350724075,1738087833356,-838.92355313,0.00016434,2]
[350724076,1738087833366,-838.92355313,0.00016434,2]
[350724077,1738087833377,-838.92355313,0.00016434,2]
[350724078,1738087833388,-838.92355313,0.00016434,2]
[350724079,1738087833399,-838.92355313,0.00016434,2]
[350724080,1738087833410,-838.92355313,0.00016434,2]
[350724081,1738087833421,-838.92355313,0.00016434,2]
[350724082,1738087833432,-838.92355313,0.00016434,2]
[350724083,1738087833445,-500.0,0.00016437,2]
[350724084,1738087833456,-526.69438858,0.00016437,2]
[350724085,1738087833467,-500.0,0.00016437,2]
[350724086,1738087833478,-500.0,0.00016437,2]
[350724087,1738087833488,-431.3297498,0.00016438,2]
[350724088,1738087833498,-500.0,0.00016438,2]
[350724089,1738087833510,-500.0,0.00016438,2]
[350724090,1738087833521,-501.88048809,0.00016438,2]
[350724091,1738087833532,-500.0,0.00016438,2]
[350724092,1738087833542,-500.0,0.00016438,2]
[350724093,1738087833553,-500.0,0.00016438,2]
[350724094,1738087833565,-500.0,0.00016438,2]
[350724095,1738087833575,-500.0,0.00016438,2]
[350724096,1738087833585,-500.0,0.00016438,2]
[350724097,1738087833595,-500.0,0.00016438,2]
[350724098,1738087833605,-1030.52,0.00016438,2]
[350724099,1738087833616,-500.0,0.00016438,2]
[350724100,1738087833626,-500.0,0.00016438,2]
[350724101,1738087833636,-500.0,0.00016438,2]
[350724102,1738087833646,-500.0,0.00016438,2]
[350724103,1738087833656,-500.0,0.00016438,2]
[350724104,1738087833666,-502.15312162,0.00016438,2]
[350724105,1738087833675,-500.0,0.00016438,2]
[350724106,1738087833684,-500.0,0.00016438,2]
[350724107,1738087833694,-500.0,0.00016438,2]
[350724108,1738087833704,-523.34710049,0.00016438,2]
[350724109,1738087833715,-468.921,0.00016438,2]
[350724110,1738087833726,-500.0,0.00016438,2]
[350724111,1738087833737,-500.0,0.00016438,2]
[350724112,1738087833747,-500.0,0.00016438,2]
[350724113,1738087833757,-500.0,0.00016438,2]
[350724114,1738087833767,-500.0,0.00016438,2]
[350724115,1738087833778,-500.0,0.00016438,2]
[350724116,1738087833789,-937.09,0.00016438,2]
[350724117,1738087833800,-500.0,0.00016438,2]
[350724118,1738087833810,-500.0,0.00016438,2]
[350724119,1738087833823,-500.0,0.00016438,2]
[350724120,1738087833834,-500.0,0.00016438,2]
[350724121,1738087833844,-500.0,0.00016438,2]
[350724122,1738087833855,-500.0,0.00016438,2]
[350724123,1738087833866,-500.0,0.00016438,2]
[350724124,1738087833877,-500.0,0.00016438,2]
[350724125,1738087833887,-1875.03,0.00016438,2]
[350724126,1738087833897,-500.0,0.00016438,2]
[350724127,1738087833908,-535.69569744,0.00016438,2]
[350724128,1738087833918,-500.0,0.00016438,2]
[350724129,1738087833929,-500.0,0.00016438,2]
[350724130,1738087833940,-500.0,0.00016438,2]
[350724131,1738087833950,-500.0,0.00016438,2]
[350724132,1738087833960,-500.0,0.00016438,2]
[350724133,1738087833971,-572.39245361,0.00016438,2]
[350724134,1738087833982,-500.0,0.00016438,2]
[350724135,1738087833992,-504.40092924,0.00016438,2]
[350724136,1738087834003,-500.0,0.00016438,2]
[350724137,1738087834014,-500.0,0.00016438,2]
[350724138,1738087834025,-500.0,0.00016438,2]
[350724139,1738087834035,-500.0,0.00016438,2]
[350724140,1738087834046,-500.0,0.00016438,2]
[350724141,1738087834058,-500.0,0.00016438,2]
[350724142,1738087834070,-500.0,0.00016438,2]
[350724143,1738087834081,-500.0,0.00016438,2]
[350724144,1738087834092,-500.0,0.00016438,2]
[350724145,1738087834102,-500.0,0.00016438,2]
[350724146,1738087834112,-500.0,0.00016438,2]
[350724147,1738087834123,-500.0,0.00016438,2]
[350724148,1738087834134,-500.0,0.00016438,2]
[350724149,1738087834144,-500.0,0.00016438,2]
[350724150,1738087834155,-501.80045262,0.00016438,2]
[350724151,1738087834166,-500.0,0.00016438,2]
[350724152,1738087834177,-500.0,0.00016438,2]
[350724153,1738087834188,-500.0,0.00016438,2]
[350724154,1738087834198,-500.0,0.00016438,2]
[350724155,1738087834209,-500.0,0.00016438,2]
[350724156,1738087834220,-500.0,0.00016438,2]
[350724157,1738087834231,-500.0,0.00016438,2]
[350724158,1738087834242,-500.0,0.00016438,2]
[350724159,1738087834252,-500.0,0.00016438,2]
[350724160,1738087834263,-500.0,0.00016438,2]
[350724161,1738087834274,-500.0,0.00016438,2]
[350724162,1738087834285,-501.64424515,0.00016438,2]
[350724163,1738087834295,-500.0,0.00016438,2]
[350724164,1738087834306,-500.0,0.00016438,2]
[350724165,1738087834318,-500.0,0.00016438,2]
[350724166,1738087834328,-500.0,0.00016438,2]
[350724167,1738087834339,-501.12136402,0.00016438,2]
[350724168,1738087834349,-504.94870733,0.00016438,2]
[350724169,1738087834359,-842.78,0.00016438,2]
[350724170,1738087834369,-500.0,0.00016438,2]
[350724171,1738087834380,-507.81873159,0.00016438,2]
[350724172,1738087834391,-1380.16,0.00016438,2]
[350724173,1738087834401,-635.58214511,0.00016438,2]
[350724174,1738087834412,-500.0,0.00016438,2]
[350724175,1738087834423,-500.0,0.00016438,2]
[350724176,1738087834434,-501.70699556,0.00016438,2]
[350724177,1738087834448,-500.0,0.00016438,2]
[350724178,1738087834458,-500.0,0.00016438,2]
[350724179,1738087834468,-500.0,0.00016438,2]
[350724180,1738087834480,-500.0,0.00016438,2]
[350724181,1738087834491,-500.0,0.00016438,2]
[350724182,1738087834502,-500.0,0.00016438,2]
[350724183,1738087834512,-500.0,0.00016438,2]
[350724184,1738087834524,-500.0,0.00016438,2]
[350724185,1738087834534,-500.0,0.00016438,2]
[350724186,1738087834544,-500.0,0.00016438,2]
[350724187,1738087834555,-737.87,0.00016438,2]
[350724188,1738087834568,-500.0,0.00016438,2]
[350724189,1738087834579,-500.0,0.00016438,2]
[350724190,1738087834589,-500.0,0.00016438,2]
[350724191,1738087834599,-500.0,0.00016438,2]
[350724192,1738087834610,-527.68703163,0.00016438,2]
[350724193,1738087834621,-500.0,0.00016438,2]
[350724194,1738087834631,-500.0,0.00016438,2]
[350724195,1738087834642,-500.0,0.00016438,2]
[350724196,1738087834652,-502.51161419,0.00016438,2]
[350724197,1738087834663,-500.0,0.00016438,2]
[350724198,1738087834673,-500.0,0.00016438,2]
[350724199,1738087834683,-504.77628333,0.00016438,2]
[350724200,1738087834693,-500.0,0.00016438,2]
[350724201,1738087834703,-500.0,0.00016438,2]
[350724202,1738087834713,-500.0,0.00016438,2]
[350724203,1738087834723,-500.0,0.00016438,2]
[350724204,1738087834733,-503.0661891,0.00016438,2]
[350724205,1738087834890,-500.0,0.00016438,2]
[350724206,1738087834900,-500.0,0.00016438,2]
[350724207,1738087834910,-500.0,0.00016438,2]
[350724208,1738087834919,-500.0,0.00016438,2]
[350724209,1738087834929,-500.0,0.00016438,2]
[350724210,1738087834939,-500.0,0.00016438,2]
[350724211,1738087834949,-500.0,0.00016438,2]
[350724212,1738087834959,-500.0,0.00016438,2]
[350724213,1738087834969,-500.0,0.00016438,2]
[350724214,1738087834979,-500.0,0.00016438,2]
[350724215,1738087834988,-500.0,0.00016438,2]
[350724216,1738087834998,-500.0,0.00016438,2]
[350724217,1738087835008,-500.0,0.00016438,2]
[350724218,1738087835018,-500.0,0.00016438,2]
[350724219,1738087835027,-500.76887368,0.00016438,2]
[350724220,1738087835038,-500.0,0.00016438,2]
[350724221,1738087835048,-500.0,0.00016438,2]
[350724222,1738087835058,-500.0,0.00016438,2]
[350724223,1738087835069,-500.0,0.00016438,2]
[350724224,1738087835080,-500.0,0.00016438,2]
[350724225,1738087835090,-500.0,0.00016438,2]
[350724226,1738087835100,-500.0,0.00016438,2]
[350724227,1738087835110,-500.0,0.00016438,2]
[350724228,1738087835119,-500.0,0.00016438,2]
[350724229,1738087835129,-501.89743136,0.00016438,2]
[350724230,1738087835139,-500.0,0.00016438,2]
[350724231,1738087835149,-500.0,0.00016438,2]
[350724232,1738087835159,-500.0,0.00016438,2]
[350724233,1738087835169,-500.80017489,0.00016438,2]
[350724234,1738087835179,-502.53341103,0.00016438,2]
[350724235,1738087835189,-500.0,0.00016438,2]
[350724236,1738087835199,-506.21712907,0.00016438,2]
[350724237,1738087835209,-500.0,0.00016438,2]
[350724238,1738087835219,-500.0,0.00016438,2]
[350724239,1738087835229,-500.0,0.00016438,2]
[350724240,1738087835239,-500.0,0.00016438,2]
[350724241,1738087835248,-500.0,0.00016438,2]
[350724242,1738087835258,-500.0,0.00016438,2]
[350724243,1738087835268,-500.0,0.00016438,2]
[350724244,1738087835277,-506.01513147,0.00016438,2]
[350724245,1738087835287,-500.0,0.00016438,2]
[350724246,1738087835297,-2375.35,0.00016438,2]
[350724247,1738087835307,-500.0,0.00016438,2]
[350724248,1738087835318,-500.0,0.00016438,2]
[350724249,1738087835328,-1013.45,0.00016438,2]
[350724250,1738087835338,-2697.16,0.00016438,2]
[350724251,1738087835347,-500.0,0.00016438,2]
[350724252,1738087835357,-500.0,0.00016438,2]
[350724253,1738087835366,-500.0,0.00016438,2]
[350724254,1738087835375,-839.8,0.00016438,2]
[350724255,1738087835385,-500.0,0.00016438,2]
[350724256,1738087835394,-342.06975907,0.00016438,2]
[350724257,1738087835404,-500.0,0.00016438,2]
[350724258,1738087835413,-500.0,0.00016438,2]
[350724259,1738087835425,-500.0,0.00016438,2]
[350724260,1738087835437,-500.0,0.00016438,2]
[350724261,1738087835446,-500.0,0.00016438,2]
[350724262,1738087835456,-500.0,0.00016438,2]
[350724263,1738087835466,-501.78743427,0.00016438,2]
[350724264,1738087835477,-500.0,0.00016438,2]
[350724265,1738087835487,-500.0,0.00016438,2]
[350724266,1738087835496,-500.0,0.00016438,2]
[350724267,1738087835507,-500.0,0.00016438,2]
[350724268,1738087835516,-500.0,0.00016438,2]
[350724269,1738087835525,-500.0,0.00016438,2]
[350724270,1738087835535,-500.0,0.00016438,2]
[350724271,1738087835544,-500.0,0.00016438,2]
[350724272,1738087835554,-500.0,0.00016438,2]
[350724273,1738087835563,-500.0,0.00016438,2]
[350724274,1738087835573,-552.65521867,0.00016438,2]
[350724275,1738087835584,-500.0,0.00016438,2]
[350724276,1738087835593,-337.31,0.00016574,2]
[350724277,1738087835603,-702.03,0.00016574,2]
[350724278,1738087835612,-500.0,0.00016574,2]
[350724279,1738087835623,-500.0,0.00016574,2]
[350724280,1738087835633,-500.0,0.00016574,2]
[350724281,1738087835643,-10824.85,0.00016574,2]
[350724282,1738087835652,-4162.33,0.00016574,2]
[350724283,1738087835662,-500.0,0.00016574,2]
[350724284,1738087835673,-500.0,0.00016574,2]
[350724285,1738087835683,-531.99,0.00016574,2]
[350724286,1738087835693,-500.0,0.00016574,2]
[350724287,1738087835703,-500.0,0.00016574,2]
[350724288,1738087835713,-500.86391518,0.00016574,2]
[350724289,1738087835723,-500.0,0.00016574,2]
[350724290,1738087835733,-3277.44,0.00016574,2]
[350724291,1738087835742,-500.0,0.00016574,2]
[350724292,1738087835752,-500.0,0.00016574,2]
[350724293,1738087835762,-500.0,0.00016574,2]
[350724294,1738087835771,-500.0,0.00016574,2]
[350724295,1738087835781,-500.0,0.00016575,2]
[350724296,1738087835792,-500.0,0.00016575,2]
[350724297,1738087835802,-500.0,0.00016575,2]
[350724298,1738087835811,-500.0,0.00016575,2]
[350724299,1738087835823,-500.0,0.00016575,2]
[350724300,1738087835833,-500.0,0.00016575,2]
[350724301,1738087835842,-500.0,0.00016575,2]
[350724302,1738087835851,-1030.52,0.00016575,2]
[350724303,1738087835861,-500.0,0.00016575,2]
[350724304,1738087835870,-500.0,0.00016575,2]
[350724305,1738087835880,-500.0,0.00016575,2]
[350724306,1738087835890,-500.0,0.00016575,2]
[350724307,1738087835899,-500.0,0.00016575,2]
[350724308,1738087835909,-500.0,0.00016575,2]
[350724309,1738087835919,-937.09,0.00016575,2]
[350724310,1738087835928,-500.0,0.00016575,2]
[350724311,1738087835938,-1875.03,0.00016575,2]
[350724312,1738087835948,-500.0,0.00016575,2]
[350724313,1738087835959,-842.78,0.00016575,2]
[350724314,1738087835969,-1380.16,0.00016575,2]
[350724315,1738087835979,-500.0,0.00016575,2]
[350724316,1738087835988,-474.22,0.00016575,2]
[350724317,1738087835998,-737.87,0.00016575,2]
[350724318,1738087836008,-500.0,0.00016575,2]
[350724319,1738087836017,-500.0,0.00016575,2]
[350724320,1738087836026,-500.0,0.00016575,2]
[350724321,1738087836036,-500.0,0.00016575,2]
[350724322,1738087836045,-500.0,0.00016575,2]
[350724323,1738087836055,-500.0,0.00016575,2]
[350724324,1738087836064,-500.0,0.00016575,2]
[350724325,1738087836075,-449.24958018,0.00016575,2]
[350724326,1738087836085,-446.78542366,0.00016575,2]
[350724327,1738087836095,-500.0,0.00016575,2]
[350724328,1738087836105,-500.0,0.00016575,2]
[350724329,1738087836115,-500.0,0.00016575,2]
[350724330,1738087836125,-500.0,0.00016575,2]
[350724331,1738087836134,-500.0,0.00016575,2]
[350724332,1738087836143,-500.0,0.00016575,2]
[350724333,1738087836153,-2375.35,0.00016575,2]
[350724334,1738087836164,-500.0,0.00016575,2]
[350724335,1738087836174,-1013.45,0.00016575,2]
[350724336,1738087836185,-2697.16,0.00016575,2]
[350724337,1738087836195,-500.0,0.00016575,2]
[350724338,1738087836205,-502.17441313,0.00016575,2]
[350724339,1738087836214,-839.8,0.00016575,2]
[350724340,1738087836224,-500.0,0.00016575,2]
[350724341,1738087836234,-500.0,0.00016575,2]
[350724342,1738087836243,-500.0,0.00016575,2]
[350724343,1738087836253,-500.0,0.00016575,2]
[350724344,1738087836263,-502.95956321,0.00016575,2]
[350724345,1738087836273,-500.0,0.00016575,2]
[350724346,1738087836283,-507.7260653,0.00016575,2]
[350724347,1738087836292,-500.0,0.00016575,2]
[350724348,1738087836302,-500.0,0.00016575,2]
[350724349,1738087836313,-500.0,0.00016575,2]
[350724350,1738087836326,-500.0,0.00016575,2]
[350724351,1738087836336,-500.0,0.00016575,2]
[350724352,1738087836347,-702.03,0.00016711,2]
[350724353,1738087836356,-10824.85,0.00016711,2]
[350724354,1738087836366,-4162.33,0.00016711,2]
[350724355,1738087836376,-500.0,0.00016711,2]
[350724356,1738087836385,-500.0,0.00016711,2]
[350724357,1738087836395,-531.99,0.00016711,2]
[350724358,1738087836404,-500.0,0.00016711,2]
[350724359,1738087836414,-500.0,0.00016711,2]
[350724360,1738087836425,-500.0,0.00016711,2]
[350724361,1738087836437,-151.0,0.00016711,2]
[350724362,1738087836447,-3277.44,0.00016711,2]
[350724363,1738087836456,-500.0,0.00016711,2]
[350724364,1738087836467,-500.0,0.00016711,2]
[350724365,1738087836477,-500.0,0.00016711,2]
[350724366,1738087836486,-500.0,0.00016712,2]
[350724367,1738087836496,-500.0,0.00016712,2]
[350724368,1738087836508,-500.0,0.00016712,2]
[350724369,1738087836519,-500.0,0.00016712,2]
[350724370,1738087836528,-500.0,0.00016712,2]
[350724371,1738087836538,-500.0,0.00016712,2]